[Event "Titled Tuesday Blitz December 20 Late 2022"]
[White "benny_aizenberg"]
[Black "Floresvillar Gonzalez, Luis Migu"]
[BlackFideId "5100542"]
[WhiteElo "2395"]
[BlackElo "2040"]
[Result "1-0"]
[Round "08"]
[TimeControl "180+1"]
[Date "2022.12.21"]
[WhiteClock "0:01:06"]
[BlackClock "0:00:02"]

1. e4 {[%clk 0:03:00]}  c5 {[%clk 0:02:55]} 2. Nf3 {[%clk 0:03:00]}  d6 {[%clk 0:02:54]} 3. d4 {[%clk 0:03:01]}  cxd4 {[%clk 0:02:55]} 4. Nxd4 {[%clk 0:03:02]}  Nf6 {[%clk 0:02:54]} 5. Nc3 {[%clk 0:03:02]}  Nc6 {[%clk 0:02:54]} 6. Bg5 {[%clk 0:03:01]}  h6 {[%clk 0:02:38]} 7. Bxf6 {[%clk 0:02:57]}  gxf6 {[%clk 0:02:38]} 8. Qd2 {[%clk 0:02:57]}  Nxd4 {[%clk 0:02:37]} 9. Qxd4 {[%clk 0:02:57]}  a6 {[%clk 0:02:30]} 10. O-O-O {[%clk 0:02:55]}  e6 {[%clk 0:02:25]} 11. f4 {[%clk 0:02:54]}  Be7 {[%clk 0:02:24]} 12. Bc4 {[%clk 0:02:53]}  b5 {[%clk 0:02:20]} 13. Bb3 {[%clk 0:02:53]}  Rg8 {[%clk 0:02:19]} 14. f5 {[%clk 0:02:48]}  Qc7 {[%clk 0:02:02]} 15. Rhf1 {[%clk 0:02:27]}  Rxg2 {[%clk 0:02:00]} 16. Rg1 {[%clk 0:02:17]}  Rxh2 {[%clk 0:01:35]} 17. Rg8+ {[%clk 0:02:13]}  Bf8 {[%clk 0:01:35]} 18. fxe6 {[%clk 0:02:04]}  Bxe6 {[%clk 0:01:34]} 19. Qxf6 {[%clk 0:01:57]}  Qe7 {[%clk 0:01:23]} 20. Qf4 {[%clk 0:01:50]}  Rh5 {[%clk 0:01:05]} 21. Nd5 {[%clk 0:01:13]}  Bxd5 {[%clk 0:00:56]} 22. Bxd5 {[%clk 0:01:13]}  O-O-O {[%clk 0:00:49]} 23. Qg4+ {[%clk 0:01:12]}  f5 {[%clk 0:00:29]} 24. Qxh5 {[%clk 0:01:12]}  fxe4 {[%clk 0:00:29]} 25. Rf1 {[%clk 0:01:10]}  e3 {[%clk 0:00:26]} 26. Rf7 {[%clk 0:01:07]}  Qe5 {[%clk 0:00:03]} 27. Qxe5 {[%clk 0:01:06]}  dxe5 {[%clk 0:00:02]} 28. Rfxf8 {[%clk 0:01:06]}  Rxf8 {[%clk 0:00:02]} 29. Rxf8+ {[%clk 0:01:07]}  Kc7 {[%clk 0:00:02]} 30. Rf6 {[%clk 0:01:06]} 1-0


[Site "https://www.chess.com"]

[Event "Titled Tuesday Blitz December 20 Late 2022"]
[White "Adel, Sara"]
[Black "Bach, Matthias"]
[WhiteFideId "10616764"]
[BlackFideId "4603168"]
[WhiteElo "1997"]
[BlackElo "2165"]
[Result "0-1"]
[Round "09"]
[TimeControl "180+1"]
[Date "2022.12.21"]
[WhiteClock "0:00:16"]
[BlackClock "0:00:55"]

1. e4 {[%clk 0:01:16]}  e5 {[%clk 0:02:30]} 2. Nf3 {[%clk 0:01:16]}  Nc6 {[%clk 0:02:30]} 3. Bc4 {[%clk 0:01:16]}  Nf6 {[%clk 0:02:30]} 4. d3 {[%clk 0:01:14]}  Bc5 {[%clk 0:02:26]} 5. c3 {[%clk 0:01:14]}  d6 {[%clk 0:02:26]} 6. Qe2 {[%clk 0:01:14]}  Be6 {[%clk 0:02:24]} 7. b4 {[%clk 0:01:12]}  Bb6 {[%clk 0:02:23]} 8. Bb3 {[%clk 0:01:11]}  Qe7 {[%clk 0:02:18]} 9. Bc2 {[%clk 0:01:11]}  d5 {[%clk 0:02:09]} 10. a4 {[%clk 0:01:09]}  dxe4 {[%clk 0:02:07]} 11. dxe4 {[%clk 0:00:56]}  a6 {[%clk 0:02:07]} 12. b5 {[%clk 0:00:56]}  axb5 {[%clk 0:02:05]} 13. Qxb5 {[%clk 0:00:56]}  O-O {[%clk 0:02:01]} 14. Nxe5 {[%clk 0:00:54]}  Nxe5 {[%clk 0:01:59]} 15. Qxe5 {[%clk 0:00:54]}  Bxf2+ {[%clk 0:01:59]} 16. Kf1 {[%clk 0:00:53]}  Ng4 {[%clk 0:01:54]} 17. Qh5 {[%clk 0:00:44]}  Be3 {[%clk 0:01:31]} 18. Ba3 {[%clk 0:00:44]}  Qf6+ {[%clk 0:01:26]} 19. Qf5 {[%clk 0:00:26]}  Bxf5 {[%clk 0:01:23]} 20. exf5 {[%clk 0:00:25]}  Bb6 {[%clk 0:01:19]} 21. h3 {[%clk 0:00:24]}  Ne3+ {[%clk 0:01:17]} 22. Kg1 {[%clk 0:00:22]}  Nxc2+ {[%clk 0:01:16]} 23. Kh2 {[%clk 0:00:23]}  Nxa1 {[%clk 0:01:16]} 24. Bxf8 {[%clk 0:00:23]}  Rxf8 {[%clk 0:01:15]} 25. Nd2 {[%clk 0:00:24]}  Qxc3 {[%clk 0:01:15]} 26. Nf3 {[%clk 0:00:25]}  c6 {[%clk 0:01:14]} 27. Rd1 {[%clk 0:00:23]}  Bc7+ {[%clk 0:01:14]} 28. Kh1 {[%clk 0:00:22]}  Nc2 {[%clk 0:01:13]} 29. Rd7 {[%clk 0:00:21]}  Qa1+ {[%clk 0:01:11]} 30. Ng1 {[%clk 0:00:19]}  Bb6 {[%clk 0:01:08]} 31. Kh2 {[%clk 0:00:17]}  Qxg1+ {[%clk 0:01:06]} 32. Kg3 {[%clk 0:00:18]}  Ne3 {[%clk 0:00:59]} 33. Rxb7 {[%clk 0:00:18]}  Qxg2+ {[%clk 0:00:59]} 34. Kf4 {[%clk 0:00:18]}  Nd5+ {[%clk 0:00:57]} 35. Ke5 {[%clk 0:00:18]}  Bc7+ {[%clk 0:00:55]} 36. Kd4 {[%clk 0:00:18]}  Qf2+ {[%clk 0:00:55]} 37. Kc4 {[%clk 0:00:18]}  Qc2+ {[%clk 0:00:54]} 38. Kd4 {[%clk 0:00:16]}  Qc3+ {[%clk 0:00:55]} 0-1


[Site "https://www.chess.com"]

[Event "Titled Tuesday Blitz December 20 Late 2022"]
[White "Antonio, Jorge Carlos"]
[Black "Szyszylo, Rafal"]
[WhiteFideId "113190"]
[BlackFideId "1109626"]
[WhiteElo "2247"]
[BlackElo "1981"]
[Result "1-0"]
[Round "09"]
[TimeControl "180+1"]
[Date "2022.12.21"]
[WhiteClock "0:00:21"]
[BlackClock "0:00:10"]

1. d4 {[%clk 0:02:58]}  g6 {[%clk 0:03:00]} 2. Nf3 {[%clk 0:02:57]}  Nf6 {[%clk 0:03:01]} 3. c4 {[%clk 0:02:57]}  Bg7 {[%clk 0:03:01]} 4. Nc3 {[%clk 0:02:53]}  O-O {[%clk 0:03:01]} 5. e4 {[%clk 0:02:47]}  d6 {[%clk 0:03:02]} 6. Be2 {[%clk 0:02:46]}  Na6 {[%clk 0:03:02]} 7. O-O {[%clk 0:02:42]}  e5 {[%clk 0:03:03]} 8. Be3 {[%clk 0:02:38]}  Qe8 {[%clk 0:03:00]} 9. dxe5 {[%clk 0:02:35]}  dxe5 {[%clk 0:02:59]} 10. a3 {[%clk 0:02:26]}  c6 {[%clk 0:02:39]} 11. h3 {[%clk 0:02:19]}  Nh5 {[%clk 0:02:36]} 12. Qc2 {[%clk 0:02:16]}  Nf4 {[%clk 0:02:35]} 13. b4 {[%clk 0:02:12]}  Nc7 {[%clk 0:02:31]} 14. Rfd1 {[%clk 0:02:08]}  Nxe2+ {[%clk 0:02:29]} 15. Qxe2 {[%clk 0:02:06]}  Ne6 {[%clk 0:02:26]} 16. a4 {[%clk 0:01:56]}  f5 {[%clk 0:02:21]} 17. a5 {[%clk 0:01:42]}  f4 {[%clk 0:02:08]} 18. Bc5 {[%clk 0:01:37]}  Nxc5 {[%clk 0:02:04]} 19. bxc5 {[%clk 0:01:34]}  Qe7 {[%clk 0:01:59]} 20. Rd6 {[%clk 0:01:29]}  Be6 {[%clk 0:01:57]} 21. a6 {[%clk 0:01:25]}  bxa6 {[%clk 0:01:53]} 22. Rxc6 {[%clk 0:01:21]}  Rfc8 {[%clk 0:01:31]} 23. Raxa6 {[%clk 0:01:17]}  Rxc6 {[%clk 0:01:24]} 24. Rxc6 {[%clk 0:01:16]}  a5 {[%clk 0:01:24]} 25. Nd5 {[%clk 0:01:15]}  Bxd5 {[%clk 0:01:15]} 26. cxd5 {[%clk 0:01:14]}  a4 {[%clk 0:01:14]} 27. d6 {[%clk 0:01:10]}  Qe6 {[%clk 0:01:11]} 28. Rc7 {[%clk 0:01:06]}  a3 {[%clk 0:01:07]} 29. Ng5 {[%clk 0:01:05]}  Qb3 {[%clk 0:01:06]} 30. d7 {[%clk 0:01:01]}  Bf6 {[%clk 0:01:06]} 31. Rc8+ {[%clk 0:00:53]}  Kg7 {[%clk 0:01:00]} 32. Rxa8 {[%clk 0:00:50]}  Bxg5 {[%clk 0:01:00]} 33. c6 {[%clk 0:00:49]}  f3 {[%clk 0:00:58]} 34. Qxf3 {[%clk 0:00:48]}  Qb1+ {[%clk 0:00:50]} 35. Kh2 {[%clk 0:00:47]}  Bf4+ {[%clk 0:00:51]} 36. g3 {[%clk 0:00:47]}  a2 {[%clk 0:00:50]} 37. d8=Q {[%clk 0:00:45]}  a1=Q {[%clk 0:00:50]} 38. Rxa1 {[%clk 0:00:41]}  Qxa1 {[%clk 0:00:43]} 39. Qd7+ {[%clk 0:00:40]}  Kh6 {[%clk 0:00:43]} 40. gxf4 {[%clk 0:00:39]}  Qc1 {[%clk 0:00:34]} 41. f5 {[%clk 0:00:28]}  gxf5 {[%clk 0:00:21]} 42. Qdxf5 {[%clk 0:00:25]}  Qxc6 {[%clk 0:00:14]} 43. Q3h5+ {[%clk 0:00:24]}  Kg7 {[%clk 0:00:14]} 44. Qhg5+ {[%clk 0:00:22]}  Qg6 {[%clk 0:00:11]} 45. Qgxg6+ {[%clk 0:00:19]}  hxg6 {[%clk 0:00:12]} 46. Qxe5+ {[%clk 0:00:20]}  Kh6 {[%clk 0:00:11]} 47. Kg3 {[%clk 0:00:19]}  g5 {[%clk 0:00:11]} 48. Kg4 {[%clk 0:00:18]}  Kg6 {[%clk 0:00:10]} 49. Qxg5+ {[%clk 0:00:18]}  Kf7 {[%clk 0:00:11]} 50. f4 {[%clk 0:00:18]}  Ke6 {[%clk 0:00:11]} 51. h4 {[%clk 0:00:18]}  Kd6 {[%clk 0:00:11]} 52. h5 {[%clk 0:00:19]}  Ke6 {[%clk 0:00:11]} 53. h6 {[%clk 0:00:20]}  Kd6 {[%clk 0:00:10]} 54. h7 {[%clk 0:00:21]}  Kc6 {[%clk 0:00:10]} 55. h8=Q {[%clk 0:00:21]}  Kd6 {[%clk 0:00:10]} 56. Qhh6+ {[%clk 0:00:21]}  Kd7 {[%clk 0:00:10]} 57. Qgg7+ {[%clk 0:00:21]}  Ke8 {[%clk 0:00:10]} 58. Qhh8# {[%clk 0:00:21]} 1-0


[Site "https://www.chess.com"]

[Event "Titled Tuesday Blitz December 20 Late 2022"]
[White "ArchibaldCerveza29"]
[Black "aidenzhouu"]
[WhiteElo "2443"]
[BlackElo "2400"]
[Result "1-0"]
[Round "09"]
[TimeControl "180+1"]
[Date "2022.12.21"]
[WhiteClock "0:00:20"]
[BlackClock "0:00:10"]

1. d4 {[%clk 0:03:00]}  Nf6 {[%clk 0:03:00]} 2. c4 {[%clk 0:03:00]}  Nc6 {[%clk 0:02:59]} 3. Nf3 {[%clk 0:02:58]}  e6 {[%clk 0:02:59]} 4. Nc3 {[%clk 0:02:58]}  Bb4 {[%clk 0:02:59]} 5. Bg5 {[%clk 0:02:56]}  O-O {[%clk 0:02:54]} 6. e3 {[%clk 0:02:56]}  d6 {[%clk 0:02:50]} 7. Rc1 {[%clk 0:02:53]}  h6 {[%clk 0:02:50]} 8. Bh4 {[%clk 0:02:52]}  e5 {[%clk 0:02:33]} 9. Be2 {[%clk 0:02:49]}  Qe7 {[%clk 0:02:25]} 10. O-O {[%clk 0:02:44]}  Bxc3 {[%clk 0:02:25]} 11. Rxc3 {[%clk 0:02:43]}  Bg4 {[%clk 0:02:09]} 12. d5 {[%clk 0:02:38]}  Nb8 {[%clk 0:02:07]} 13. Nd2 {[%clk 0:02:33]}  Bxe2 {[%clk 0:02:05]} 14. Qxe2 {[%clk 0:02:34]}  Nbd7 {[%clk 0:02:03]} 15. e4 {[%clk 0:02:32]}  a5 {[%clk 0:01:57]} 16. b3 {[%clk 0:02:32]}  g5 {[%clk 0:01:50]} 17. Bg3 {[%clk 0:02:28]}  h5 {[%clk 0:01:50]} 18. h4 {[%clk 0:02:25]}  g4 {[%clk 0:01:42]} 19. f3 {[%clk 0:02:18]}  Kh8 {[%clk 0:01:19]} 20. fxg4 {[%clk 0:02:13]}  Nxg4 {[%clk 0:01:18]} 21. Rf5 {[%clk 0:02:12]}  Ndf6 {[%clk 0:01:15]} 22. Nf3 {[%clk 0:02:09]}  Rg8 {[%clk 0:01:08]} 23. Ng5 {[%clk 0:02:08]}  Nh6 {[%clk 0:01:02]} 24. Rf1 {[%clk 0:02:03]}  Nfg4 {[%clk 0:01:02]} 25. Rcf3 {[%clk 0:01:57]}  f6 {[%clk 0:00:52]} 26. Ne6 {[%clk 0:01:56]}  Rg6 {[%clk 0:00:52]} 27. Be1 {[%clk 0:01:49]}  b6 {[%clk 0:00:41]} 28. Bd2 {[%clk 0:01:49]}  Rag8 {[%clk 0:00:38]} 29. Rg3 {[%clk 0:01:45]}  c5 {[%clk 0:00:19]} 30. a3 {[%clk 0:01:29]}  Qd7 {[%clk 0:00:19]} 31. Qd1 {[%clk 0:01:18]}  Qe7 {[%clk 0:00:19]} 32. Qc1 {[%clk 0:01:18]}  Qh7 {[%clk 0:00:18]} 33. b4 {[%clk 0:01:16]}  axb4 {[%clk 0:00:17]} 34. axb4 {[%clk 0:01:17]}  f5 {[%clk 0:00:14]} 35. exf5 {[%clk 0:01:15]}  Rf6 {[%clk 0:00:14]} 36. Rgf3 {[%clk 0:01:08]}  e4 {[%clk 0:00:14]} 37. Ng5 {[%clk 0:01:05]}  Qe7 {[%clk 0:00:12]} 38. Rf4 {[%clk 0:01:02]}  e3 {[%clk 0:00:12]} 39. Bc3 {[%clk 0:01:01]}  Ne5 {[%clk 0:00:12]} 40. Ne4 {[%clk 0:00:55]}  Qg7 {[%clk 0:00:11]} 41. Ng5 {[%clk 0:00:45]}  Rff8 {[%clk 0:00:09]} 42. Qxe3 {[%clk 0:00:45]}  Nhg4 {[%clk 0:00:09]} 43. Qe2 {[%clk 0:00:43]}  Qf6 {[%clk 0:00:09]} 44. g3 {[%clk 0:00:42]}  Rxg5 {[%clk 0:00:10]} 45. hxg5 {[%clk 0:00:41]}  Qxg5 {[%clk 0:00:10]} 46. f6 {[%clk 0:00:31]}  Rxf6 {[%clk 0:00:10]} 47. Rxf6 {[%clk 0:00:31]}  Nxf6 {[%clk 0:00:11]} 48. bxc5 {[%clk 0:00:29]}  Qxg3+ {[%clk 0:00:10]} 49. Qg2 {[%clk 0:00:29]}  Qxc3 {[%clk 0:00:11]} 50. Rxf6 {[%clk 0:00:26]}  Ng4 {[%clk 0:00:11]} 51. Rf1 {[%clk 0:00:21]}  Qd4+ {[%clk 0:00:10]} 52. Kh1 {[%clk 0:00:20]}  bxc5 {[%clk 0:00:11]} 53. Qf3 {[%clk 0:00:19]}  Qxc4 {[%clk 0:00:09]} 54. Qf8+ {[%clk 0:00:19]}  Kh7 {[%clk 0:00:10]} 55. Rf7+ {[%clk 0:00:19]}  Kg6 {[%clk 0:00:10]} 56. Qg7# {[%clk 0:00:20]} 1-0


[Site "https://www.chess.com"]

[Event "Titled Tuesday Blitz December 20 Late 2022"]
[White "Baches Garcia, Guillermo"]
[Black "Novikova, Galina"]
[WhiteFideId "2209764"]
[BlackFideId "4157095"]
[WhiteElo "2470"]
[BlackElo "1953"]
[Result "0-1"]
[Round "09"]
[TimeControl "180+1"]
[Date "2022.12.21"]
[WhiteClock "0:00:04"]
[BlackClock "0:00:15"]

1. e4 {[%clk 0:03:00]}  e6 {[%clk 0:03:00]} 2. d4 {[%clk 0:03:00]}  d5 {[%clk 0:03:01]} 3. exd5 {[%clk 0:03:01]}  exd5 {[%clk 0:03:01]} 4. Nf3 {[%clk 0:03:01]}  Nc6 {[%clk 0:03:02]} 5. Bb5 {[%clk 0:03:01]}  Bg4 {[%clk 0:03:02]} 6. h3 {[%clk 0:02:56]}  Bh5 {[%clk 0:03:01]} 7. g4 {[%clk 0:02:47]}  Bg6 {[%clk 0:03:01]} 8. Ne5 {[%clk 0:02:47]}  Ne7 {[%clk 0:03:01]} 9. Qe2 {[%clk 0:02:39]}  Qd6 {[%clk 0:02:42]} 10. Nxc6 {[%clk 0:02:10]}  bxc6 {[%clk 0:02:39]} 11. Bd3 {[%clk 0:02:09]}  Bxd3 {[%clk 0:02:25]} 12. Qxd3 {[%clk 0:02:07]}  g6 {[%clk 0:02:25]} 13. Nc3 {[%clk 0:01:49]}  Bg7 {[%clk 0:02:25]} 14. Be3 {[%clk 0:01:46]}  O-O {[%clk 0:02:23]} 15. O-O-O {[%clk 0:01:46]}  Rab8 {[%clk 0:02:24]} 16. b3 {[%clk 0:01:45]}  Qa3+ {[%clk 0:02:18]} 17. Kb1 {[%clk 0:01:44]}  a5 {[%clk 0:01:55]} 18. Rhe1 {[%clk 0:01:39]}  a4 {[%clk 0:01:46]} 19. Bc1 {[%clk 0:01:37]}  Qd6 {[%clk 0:01:38]} 20. Nxa4 {[%clk 0:01:32]}  Nc8 {[%clk 0:01:34]} 21. Bb2 {[%clk 0:01:23]}  Nb6 {[%clk 0:01:34]} 22. Nc5 {[%clk 0:01:21]}  Nd7 {[%clk 0:01:29]} 23. Qg3 {[%clk 0:01:03]}  Nxc5 {[%clk 0:01:14]} 24. dxc5 {[%clk 0:00:58]}  Qxc5 {[%clk 0:01:05]} 25. Bxg7 {[%clk 0:00:54]}  Kxg7 {[%clk 0:01:06]} 26. Qxc7 {[%clk 0:00:52]}  Qa3 {[%clk 0:00:56]} 27. Qxc6 {[%clk 0:00:35]}  Ra8 {[%clk 0:00:54]} 28. Qc3+ {[%clk 0:00:30]}  Kg8 {[%clk 0:00:55]} 29. Qb2 {[%clk 0:00:30]}  Qc5 {[%clk 0:00:55]} 30. Re5 {[%clk 0:00:19]}  Rfd8 {[%clk 0:00:52]} 31. h4 {[%clk 0:00:18]}  Qxf2 {[%clk 0:00:51]} 32. h5 {[%clk 0:00:17]}  Qf3 {[%clk 0:00:47]} 33. Rde1 {[%clk 0:00:14]}  Qxg4 {[%clk 0:00:45]} 34. h6 {[%clk 0:00:14]}  d4 {[%clk 0:00:46]} 35. Qc1 {[%clk 0:00:12]}  d3 {[%clk 0:00:27]} 36. cxd3 {[%clk 0:00:11]}  Qd4 {[%clk 0:00:27]} 37. Qc4 {[%clk 0:00:10]}  Qxc4 {[%clk 0:00:25]} 38. dxc4 {[%clk 0:00:10]}  Kf8 {[%clk 0:00:18]} 39. Rf1 {[%clk 0:00:09]}  Ra7 {[%clk 0:00:17]} 40. Re2 {[%clk 0:00:08]}  f5 {[%clk 0:00:17]} 41. Kb2 {[%clk 0:00:08]}  Kf7 {[%clk 0:00:16]} 42. Kc3 {[%clk 0:00:09]}  Kf6 {[%clk 0:00:16]} 43. a4 {[%clk 0:00:09]}  g5 {[%clk 0:00:17]} 44. c5 {[%clk 0:00:09]}  f4 {[%clk 0:00:17]} 45. Ref2 {[%clk 0:00:06]}  Re7 {[%clk 0:00:17]} 46. Kc4 {[%clk 0:00:05]}  Kf5 {[%clk 0:00:17]} 47. b4 {[%clk 0:00:05]}  Re4+ {[%clk 0:00:18]} 48. Kb5 {[%clk 0:00:04]}  Rb8+ {[%clk 0:00:18]} 49. Kc6 {[%clk 0:00:05]}  Rbxb4 {[%clk 0:00:18]} 50. a5 {[%clk 0:00:04]}  Ra4 {[%clk 0:00:17]} 51. Kb6 {[%clk 0:00:04]}  Reb4+ {[%clk 0:00:16]} 52. Kc7 {[%clk 0:00:04]}  Rxa5 {[%clk 0:00:16]} 53. c6 {[%clk 0:00:05]}  Rc4 {[%clk 0:00:16]} 54. Kd7 {[%clk 0:00:05]}  Rd5+ {[%clk 0:00:16]} 55. Ke7 {[%clk 0:00:04]}  Rxc6 {[%clk 0:00:15]} 0-1


[Site "https://www.chess.com"]

[Event "Titled Tuesday Blitz December 20 Late 2022"]
[White "Bas Mas, Jose Joaquin"]
[Black "Young, Ryan"]
[WhiteFideId "22219064"]
[BlackFideId "2049945"]
[WhiteElo "2233"]
[BlackElo "2440"]
[Result "1-0"]
[Round "09"]
[TimeControl "180+1"]
[Date "2022.12.21"]
[WhiteClock "0:00:07"]
[BlackClock "0:00:26"]

1. e4 {[%clk 0:03:00]}  c5 {[%clk 0:02:59]} 2. Nc3 {[%clk 0:02:58]}  d6 {[%clk 0:02:58]} 3. f4 {[%clk 0:02:57]}  g6 {[%clk 0:02:58]} 4. Bb5+ {[%clk 0:02:55]}  Bd7 {[%clk 0:02:58]} 5. a4 {[%clk 0:02:55]}  Bg7 {[%clk 0:02:58]} 6. Nf3 {[%clk 0:02:54]}  e6 {[%clk 0:02:55]} 7. O-O {[%clk 0:02:54]}  Ne7 {[%clk 0:02:55]} 8. d3 {[%clk 0:02:49]}  O-O {[%clk 0:02:54]} 9. Qe1 {[%clk 0:02:49]}  a6 {[%clk 0:02:47]} 10. Bc4 {[%clk 0:02:48]}  Nbc6 {[%clk 0:02:43]} 11. Ba2 {[%clk 0:02:26]}  Nd4 {[%clk 0:02:38]} 12. Nxd4 {[%clk 0:02:15]}  cxd4 {[%clk 0:02:30]} 13. Ne2 {[%clk 0:02:14]}  Bc6 {[%clk 0:02:17]} 14. Bb3 {[%clk 0:02:09]}  Qb6 {[%clk 0:01:56]} 15. a5 {[%clk 0:02:06]}  Qc7 {[%clk 0:01:48]} 16. Qf2 {[%clk 0:02:05]}  d5 {[%clk 0:01:23]} 17. e5 {[%clk 0:01:43]}  Nf5 {[%clk 0:00:57]} 18. Nxd4 {[%clk 0:01:42]}  Nxd4 {[%clk 0:00:55]} 19. Qxd4 {[%clk 0:01:40]}  Rac8 {[%clk 0:00:56]} 20. Bd2 {[%clk 0:01:31]}  Bb5 {[%clk 0:00:55]} 21. Bb4 {[%clk 0:01:28]}  Rfd8 {[%clk 0:00:55]} 22. Rae1 {[%clk 0:01:12]}  Bf8 {[%clk 0:00:53]} 23. g4 {[%clk 0:01:03]}  Bc5 {[%clk 0:00:31]} 24. Bxc5 {[%clk 0:00:59]}  Qxc5 {[%clk 0:00:32]} 25. Qxc5 {[%clk 0:00:58]}  Rxc5 {[%clk 0:00:31]} 26. f5 {[%clk 0:00:55]}  Bd7 {[%clk 0:00:26]} 27. fxg6 {[%clk 0:00:51]}  hxg6 {[%clk 0:00:21]} 28. Rf6 {[%clk 0:00:41]}  Rxa5 {[%clk 0:00:18]} 29. Ref1 {[%clk 0:00:37]}  Be8 {[%clk 0:00:18]} 30. d4 {[%clk 0:00:31]}  Rc8 {[%clk 0:00:13]} 31. h4 {[%clk 0:00:29]}  Kg7 {[%clk 0:00:14]} 32. h5 {[%clk 0:00:28]}  gxh5 {[%clk 0:00:11]} 33. gxh5 {[%clk 0:00:28]}  Rc7 {[%clk 0:00:11]} 34. Kh2 {[%clk 0:00:26]}  Ba4 {[%clk 0:00:07]} 35. Rg1+ {[%clk 0:00:20]}  Kh7 {[%clk 0:00:05]} 36. Bxa4 {[%clk 0:00:12]}  Rxa4 {[%clk 0:00:06]} 37. c3 {[%clk 0:00:13]}  Ra2 {[%clk 0:00:06]} 38. Rg2 {[%clk 0:00:12]}  b5 {[%clk 0:00:06]} 39. h6 {[%clk 0:00:12]}  b4 {[%clk 0:00:05]} 40. cxb4 {[%clk 0:00:11]}  Ra4 {[%clk 0:00:03]} 41. Rg7+ {[%clk 0:00:10]}  Kh8 {[%clk 0:00:04]} 42. Rfxf7 {[%clk 0:00:03]}  Rxf7 {[%clk 0:00:05]} 43. Rxf7 {[%clk 0:00:04]}  Rxb4 {[%clk 0:00:05]} 44. Re7 {[%clk 0:00:04]}  Rb6 {[%clk 0:00:06]} 45. Kg3 {[%clk 0:00:03]}  a5 {[%clk 0:00:07]} 46. Kg4 {[%clk 0:00:03]}  a4 {[%clk 0:00:07]} 47. Kg5 {[%clk 0:00:03]}  Rb8 {[%clk 0:00:06]} 48. Kg6 {[%clk 0:00:02]}  Rg8+ {[%clk 0:00:06]} 49. Kf6 {[%clk 0:00:03]}  Rb8 {[%clk 0:00:06]} 50. Kxe6 {[%clk 0:00:03]}  Rb6+ {[%clk 0:00:07]} 51. Kxd5 {[%clk 0:00:03]}  Rxh6 {[%clk 0:00:07]} 52. e6 {[%clk 0:00:03]}  Rh2 {[%clk 0:00:08]} 53. Kd6 {[%clk 0:00:03]}  Rxb2 {[%clk 0:00:09]} 54. Ra7 {[%clk 0:00:03]}  Rb6+ {[%clk 0:00:08]} 55. Ke5 {[%clk 0:00:03]}  Kg8 {[%clk 0:00:07]} 56. Rxa4 {[%clk 0:00:03]}  Rb5+ {[%clk 0:00:08]} 57. d5 {[%clk 0:00:03]}  Rb1 {[%clk 0:00:07]} 58. Ra7 {[%clk 0:00:03]}  Re1+ {[%clk 0:00:07]} 59. Kd6 {[%clk 0:00:03]}  Rb1 {[%clk 0:00:08]} 60. Ra8+ {[%clk 0:00:02]}  Kg7 {[%clk 0:00:08]} 61. e7 {[%clk 0:00:02]}  Re1 {[%clk 0:00:07]} 62. Kd7 {[%clk 0:00:02]}  Rd1 {[%clk 0:00:07]} 63. e8=Q {[%clk 0:00:02]}  Rxd5+ {[%clk 0:00:08]} 64. Kc6 {[%clk 0:00:02]}  Rf5 {[%clk 0:00:08]} 65. Ra7+ {[%clk 0:00:02]}  Kf6 {[%clk 0:00:08]} 66. Qd8+ {[%clk 0:00:02]}  Kg6 {[%clk 0:00:08]} 67. Qd6+ {[%clk 0:00:02]}  Rf6 {[%clk 0:00:08]} 68. Qxf6+ {[%clk 0:00:03]}  Kxf6 {[%clk 0:00:09]} 69. Rd7 {[%clk 0:00:03]}  Kf5 {[%clk 0:00:10]} 70. Rd1 {[%clk 0:00:04]}  Kf4 {[%clk 0:00:11]} 71. Kd5 {[%clk 0:00:04]}  Ke3 {[%clk 0:00:12]} 72. Re1+ {[%clk 0:00:05]}  Kf2 {[%clk 0:00:12]} 73. Re4 {[%clk 0:00:05]}  Kf3 {[%clk 0:00:13]} 74. Kd4 {[%clk 0:00:06]}  Kg3 {[%clk 0:00:14]} 75. Re3+ {[%clk 0:00:06]}  Kf4 {[%clk 0:00:13]} 76. Re2 {[%clk 0:00:06]}  Kf5 {[%clk 0:00:14]} 77. Re1 {[%clk 0:00:05]}  Kf6 {[%clk 0:00:15]} 78. Kd5 {[%clk 0:00:06]}  Kf5 {[%clk 0:00:16]} 79. Rf1+ {[%clk 0:00:05]}  Kg4 {[%clk 0:00:17]} 80. Ke4 {[%clk 0:00:05]}  Kg3 {[%clk 0:00:17]} 81. Rf8 {[%clk 0:00:05]}  Kg2 {[%clk 0:00:18]} 82. Ke3 {[%clk 0:00:05]}  Kg1 {[%clk 0:00:19]} 83. Ke2 {[%clk 0:00:05]}  Kg2 {[%clk 0:00:20]} 84. Rg8+ {[%clk 0:00:06]}  Kh3 {[%clk 0:00:21]} 85. Kf3 {[%clk 0:00:05]}  Kh4 {[%clk 0:00:22]} 86. Rg1 {[%clk 0:00:05]}  Kh5 {[%clk 0:00:22]} 87. Kf4 {[%clk 0:00:05]}  Kh6 {[%clk 0:00:23]} 88. Kf5 {[%clk 0:00:06]}  Kh7 {[%clk 0:00:24]} 89. Kf6 {[%clk 0:00:06]}  Kh8 {[%clk 0:00:25]} 90. Kf7 {[%clk 0:00:06]}  Kh7 {[%clk 0:00:26]} 91. Rh1# {[%clk 0:00:07]} 1-0


[Site "https://www.chess.com"]

[Event "Titled Tuesday Blitz December 20 Late 2022"]
[White "Battlecruiser_Operational"]
[Black "Broca Jimenez, Fernando"]
[BlackFideId "5104742"]
[WhiteElo "2408"]
[BlackElo "2062"]
[Result "1-0"]
[Round "09"]
[TimeControl "180+1"]
[Date "2022.12.21"]
[WhiteClock "0:01:50"]
[BlackClock "0:00:04"]

1. e4 {[%clk 0:02:59]}  c5 {[%clk 0:00:16]} 2. d3 {[%clk 0:02:58]}  g6 {[%clk 0:00:17]} 3. f4 {[%clk 0:02:58]}  Bg7 {[%clk 0:00:16]} 4. Nf3 {[%clk 0:02:58]}  Nc6 {[%clk 0:00:09]} 5. g3 {[%clk 0:02:58]}  d6 {[%clk 0:00:07]} 6. Bg2 {[%clk 0:02:58]}  e6 {[%clk 0:00:08]} 7. O-O {[%clk 0:02:58]}  Nge7 {[%clk 0:00:09]} 8. c3 {[%clk 0:02:59]}  O-O {[%clk 0:00:09]} 9. Na3 {[%clk 0:02:59]}  b6 {[%clk 0:00:10]} 10. Be3 {[%clk 0:02:57]}  Bb7 {[%clk 0:00:11]} 11. Nc2 {[%clk 0:02:54]}  d5 {[%clk 0:00:11]} 12. e5 {[%clk 0:02:50]}  f5 {[%clk 0:00:11]} 13. exf6 {[%clk 0:02:48]}  Bxf6 {[%clk 0:00:10]} 14. Bf2 {[%clk 0:02:47]}  Qd7 {[%clk 0:00:11]} 15. Re1 {[%clk 0:02:46]}  Rae8 {[%clk 0:00:11]} 16. Qd2 {[%clk 0:02:44]}  Nc8 {[%clk 0:00:11]} 17. Re2 {[%clk 0:02:43]}  Nd6 {[%clk 0:00:12]} 18. Rae1 {[%clk 0:02:43]}  Bc8 {[%clk 0:00:12]} 19. a3 {[%clk 0:02:40]}  a6 {[%clk 0:00:11]} 20. b4 {[%clk 0:02:37]}  c4 {[%clk 0:00:08]} 21. Bxb6 {[%clk 0:02:30]}  cxd3 {[%clk 0:00:06]} 22. Qxd3 {[%clk 0:02:31]}  Nc4 {[%clk 0:00:05]} 23. Bc5 {[%clk 0:02:27]}  Rf7 {[%clk 0:00:05]} 24. Bh3 {[%clk 0:02:09]}  Nb2 {[%clk 0:00:03]} 25. Qd2 {[%clk 0:01:56]}  Nd8 {[%clk 0:00:04]} 26. Ne3 {[%clk 0:01:50]} 1-0


[Site "https://www.chess.com"]